Cogmind - Beta 14 @@@ ROGUE MODE // 2024.11.25 @ 07:09:55 Player: Fangrelle Result: Destroyed by TZ-N2U(R) with Subdweller Beam Cannon Performance ------------- Evolutions (0) 0 Regions Visited (3) 600 Robots Destroyed (35) 175 Value Destroyed (734) 734 Prototype IDs (0) 0 Alien Tech Used (0) 0 Bonus (25) 25 TOTAL SCORE: 1534 Bonus ------- Follower Combat Kills 25 Cogmind --------- Core Integrity 0/250 Matter 225/300 Energy 125/125 System Corruption 0% Temperature Cool (9) Movement Rolling (200) Ox8 Location -10/Subcaves Parts ------- > --- POWER (1) -------- Light Ion Engine > --- PROPULSION (2) --- Wheel > --- UTILITY (2) ------ Huge Storage Unit > --- WEAPON (2) ------- Battle Cannon > --- INVENTORY (25) --- Light Ion Engine Improved Heat Sink Huge Storage Unit High-capacity Matter Pod (200) Compact Matter Pod (150) Compact Matter Pod (150) Visual Processing Unit Signal Interpreter Terrain Scanner Seismic Detector Mining Laser Peak State ------------ > --- POWER ------------ Light Nuclear Core > --- PROPULSION ------- Light Treads Wheel > --- UTILITY ---------- Huge Storage Unit Improved Terrain Scanner > --- WEAPON ----------- Makeshift Shrapnel Gun Light Cannon > --- INVENTORY -------- Light Ion Engine Wheel Wheel Wheel Improved Heat Sink Huge Storage Unit High-capacity Matter Pod Compact Matter Pod Visual Processing Unit Signal Interpreter Terrain Scanner Seismic Detector EM Pulse Gun Assault Rifle Mining Laser [Rating: 16] Favorites ----------- Power Light Nuclear Core Engine Light Ion Engine Power Core Light Nuclear Core Propulsion Light Treads Treads Light Treads Leg Aluminum Leg Wheel Wheel Utility Huge Storage Unit Device Improved Terrain Scanner Storage Huge Storage Unit Weapon Assault Rifle Energy Gun EM Pulse Gun Ballistic Gun Assault Rifle Ballistic Cannon Light Cannon Special Weapon Mining Laser Build | -11 -10 -10 -10 ------- Run | Yrd Mat Min Sub Slots Evolved . | . . . . Power . | . . . . Propulsion . | . . . . Utility . | . . . . Weapon . | . . . . Parts Attached 27 | . 11 10 6 Power 4 | . 2 2 . Engine 3 | . 1 2 . Core 1 | . 1 . . Reactor . | . . . . Propulsion 9 | . 4 3 2 Treads 5 | . 4 1 . Leg . | . . . . Wheel 4 | . . 2 2 Hover . | . . . . Flight . | . . . . Utility 4 | . 3 1 . Device 3 | . 2 1 . Storage 1 | . 1 . . Processor . | . . . . Hackware . | . . . . Protection . | . . . . Artifact . | . . . . Weapon 10 | . 2 4 4 Energy Gun 3 | . 1 . 2 Energy Cannon . | . . . . Ballistic Gun 4 | . 1 2 1 Ballistic Cannon 2 | . . 1 1 Launcher . | . . . . Special Weapon 1 | . . 1 . Impact Weapon . | . . . . Slashing Weapon . | . . . . Piercing Weapon . | . . . . Special Melee Weapon . | . . . . Unidentified Prototypes . | . . . . Parts Lost 17 | . 5 7 5 Power 3 | . 2 1 . Propulsion 7 | . 1 4 2 Utility 1 | . . . 1 Weapon 6 | . 2 2 2 Highest Loss Streak 4 | . 4 3 3 To Critical Strikes . | . . . . Average Slot Usage (%) 95 | . 97 95 91 Engine 6 | . 11 3 14 Core 7 | . 1 9 . Treads 19 | . 27 16 7 Wheel 6 | . . 8 14 Device 13 | . 13 14 13 Storage 14 | . 14 14 14 Energy Gun 5 | . 13 1 7 Ballistic Gun 14 | . 14 14 7 Ballistic Cannon 6 | . . 9 12 Peak Build Rating 16 | 6 10 16 12 Average Rating 11 | 6 7 13 10 On Entrance 7 | 6 6 10 9 Naked Turns . | . . . . Heaviest Build 91 | 14 90 91 89 Greatest Support 40 | 20 40 40 10 Greatest Overweight (x) 9 | . 2 9 8 Average Overweight (x) 5 | . . 6 8 Largest Inventory Capacity 25 | 8 25 25 25 Average Capacity 22 | 8 17 25 25 Most Carried 16 | 6 13 16 13 Average Carried 12 | 6 9 13 12 Final Capacity 25 | 8 25 25 25 Final Carried 14 | 6 11 14 11 Class Distribution -------------------- 100% | Mutant Dominant Class ---------------- Mutant | -10/Materials Mutant | -10/Mines Mutant | -10/Subcaves Resources | -11 -10 -10 -10 ----------- Run | Yrd Mat Min Sub Matter Collected 1267 | 200 284 754 29 Remotely . | . . . . Salvage Created 1023 | . 720 280 23 Parts 60 | . 42 17 1 Haulers Intercepted 2 | . 2 . . Recyclers Shooed 2 | . 2 . . Parts Field Recycled . | . . . . Retrieved Matter . | . . . . Parts Self-Destructed 1 | . . . 1 Prevented . | . . . . Kills | -11 -10 -10 -10 ------- Run | Yrd Mat Min Sub Combat Hostiles Destroyed 27 | . 13 12 2 Guns 23 | . 12 9 2 Cannons 3 | . . 3 . AOE 1 | . 1 . . Classes Destroyed 8 | . 7 1 . Worker 3 | . 1 2 . Builder 1 | . 1 . . Hauler 2 | . 2 . . Operator 1 | . 1 . . Watcher 3 | . 3 . . Swarmer 11 | . 6 3 2 Grunt 14 | . 7 7 . Assembled 2 | . . 2 . Best Kill Streak 5 | . 5 4 2 Combat Bots Only 4 | . 3 4 2 Max Kills in Single Turn 1 | . 1 1 1 Gunslinging . | . . . . Exploded 1 | . 1 . . Melee . | . . . . Uniques/NPCs Destroyed . | . . . . Combat | -11 -10 -10 -10 -------- Run | Yrd Mat Min Sub Hostile Shots Fired 223 | . 100 67 56 Missed 58 | . 29 16 13 Damage Taken 1824 | . 833 570 421 Core 260 | . 90 95 75 Absorbed by Shields . | . . . . Core Remaining (%) 100 | 100 . . . Volleys Fired 132 | . 65 55 12 Largest 2 | . 2 2 2 Hottest 100 | . 60 100 79 Shots Fired 239 | . 129 88 22 Gun 186 | . 129 47 10 Cannon 45 | . . 33 12 Launcher . | . . . . Special 8 | . . 8 . Kinetic 168 | . 73 80 15 Thermal 8 | . . 8 . Explosive . | . . . . Electromagnetic 63 | . 56 . 7 Robot Hit Streak 13 | . 13 5 2 Robot Miss Streak 6 | . 4 4 6 Penetration Max . | . . . . Secondary Targets 4 | . 4 . . Max Gunslinging Chain 1 | . 1 . . Shots Hit Robots 134 | . 80 47 7 Core Hits 58 | . 30 26 2 Critical Kills . | . . . . Critical Parts Destroyed . | . . . . Critical Strikes 2 | . 2 . . Corrupt 2 | . 2 . . Melee Attacks . | . . . . Impact . | . . . . Slashing . | . . . . Piercing . | . . . . Sneak Attacks . | . . . . Combat Hostiles . | . . . . Follow-up Attacks . | . . . . Damage Inflicted 2109 | . 1177 773 159 Guns 1696 | . 1111 539 46 Cannons 347 | . . 234 113 Explosions 66 | . 66 . . Melee . | . . . . Ramming . | . . . . Kinetic 1435 | . 537 773 125 Thermal 66 | . 66 . . Explosive . | . . . . Electromagnetic 608 | . 574 . 34 Impact . | . . . . Slashing . | . . . . Piercing . | . . . . Highest Corruption . | . . . . Average Corruption . | . . . . Corruption Purged . | . . . . Corruption Blocked . | . . . . Overload Shots . | . . . . Overflow Damage . | . . . . Projectiles . | . . . . Explosions . | . . . . Melee . | . . . . Knockbacks 10 | . . 7 3 Impact . | . . . . Kinetic 9 | . . 6 3 Secondary 1 | . . 1 . Self-Inflicted Damage . | . . . . Shots . | . . . . Rammed . | . . . . Targets Rammed . | . . . . Kicked . | . . . . Crushed . | . . . . Highest Temperature 140 | . 99 140 . Average Temperature 48 | . 34 57 . Received Heat Transfer 630 | . 387 144 99 Siege Activations . | . . . . Robots Corrupted . | . . . . Combat Hostiles . | . . . . Parts Fried 2 | . 2 . . Impact Corruptions . | . . . . Robots Melted . | . . . . Combat Hostiles . | . . . . Parts Melted . | . . . . Heat Transferred 100 | . 100 . . Parts Sabotaged . | . . . . Parts Stolen . | . . . . Parts Stripped . | . . . . Power Chain Reactions 2 | . 2 . . Alert | -11 -10 -10 -10 ------- Run | Yrd Mat Min Sub Peak Influence 371 | . 371 113 . Initial 28 | . . 28 . Average 63 | . 157 25 . Maximum Alert Level 1 | . 1 . . Low Security (%) 93 | 100 76 100 . Level 1 6 | . 23 . . Level 2 . | . . . . Level 3 . | . . . . Level 4 . | . . . . Level 5 . | . . . . High Security . | . . . . Max Security . | . . . . Squads Dispatched 2 | . 2 . . Investigation . | . . . . Extermination . | . . . . Reinforcement 2 | . 2 . . Assault . | . . . . Garrison . | . . . . Intercept . | . . . . Searches Triggered . | . . . . Construction Impeded . | . . . . Haulers Reinforced . | . . . . Active Scanning Responses . | . . . . Cargo Convoy Interrupts . | . . . . Stealth | -11 -10 -10 -10 --------- Run | Yrd Mat Min Sub Distress Signals 2 | . 2 . . Communications Jammed . | . . . . Distress Signals . | . . . . Times Spotted 40 | . 20 14 6 Peak Tracking Total 6 | . 4 4 6 Tactical Retreats 2 | . . 1 1 Traps | -11 -10 -10 -10 ------- Run | Yrd Mat Min Sub Traps Triggered . | . . . . Indirectly . | . . . . Trap Hack Attempts . | . . . . Triggered . | . . . . Disarmed . | . . . . Reprogrammed . | . . . . Reused . | . . . . Traps Extracted . | . . . . Installed . | . . . . Triggered . | . . . . Machines | -11 -10 -10 -10 ---------- Run | Yrd Mat Min Sub Machines Disabled 2 | . 2 . . Max in Single Turn 1 | . 1 . . Machines Repaired . | . . . . Machines Dismantled . | . . . . Machines Sabotaged . | . . . . Overloaded Fab Kills . | . . . . Hacking | -11 -10 -10 -10 --------- Run | Yrd Mat Min Sub Machines Accessed 5 | . 3 2 . Terminals 5 | . 3 2 . Fabricators . | . . . . Repair Stations . | . . . . Recycling Units . | . . . . Scanalyzers . | . . . . Garrison Access . | . . . . Total Hacks 17 | . 12 5 . Successful 10 | . 7 3 . Failed 7 | . 5 2 . Catastrophic 2 | . 1 1 . Database Lockouts . | . . . . Manual 10 | . 10 . . Terminals 17 | . 12 5 . Fabricators . | . . . . Repair Stations . | . . . . Recycling Units . | . . . . Scanalyzers . | . . . . Garrison Access . | . . . . Terminal Hacks 5 | . 2 3 . Record 1 | . . 1 . Branch Access Points 1 | . 1 . . Alert Level 1 | . . 1 . Zone Layout 2 | . 1 1 . Fabricator Hacks . | . . . . Repair Station Hacks . | . . . . Recycling Unit Hacks . | . . . . Scanalyzer . | . . . . Garrison Access Hacks . | . . . . Unauthorized Hacks 5 | . 5 . . Terminals 5 | . 5 . . Assimilate 1 | . 1 . . Botnet 2 | . 2 . . Operators 1 | . 1 . . Skim 1 | . 1 . . Fabricators . | . . . . Repair Stations . | . . . . Recycling Units . | . . . . Scanalyzers . | . . . . Garrison Access . | . . . . Data Cores Recovered . | . . . . Used . | . . . . Hacking Detections 5 | . 3 2 . Full Trace Events . | . . . . Feedback Events . | . . . . Feedback Blocked . | . . . . Robot Schematics Acquired . | . . . . Robots Built . | . . . . Authchips . | . . . . Time . | . . . . Total Robot Build Rating . | . . . . Part Schematics Acquired . | . . . . Parts Built . | . . . . Authchips . | . . . . Time . | . . . . Total Part Build Rating . | . . . . Parts Repaired . | . . . . Time . | . . . . Parts Recycled . | . . . . Recycled Matter . | . . . . Retrieved Matter . | . . . . Retrieved Components . | . . . . Parts Scanalyzed . | . . . . Part Schematics Acquired . | . . . . Parts Damaged . | . . . . Bothacking | -11 -10 -10 -10 ------------ Run | Yrd Mat Min Sub Used RIF Installer . | . . . . Robots Hacked . | . . . . Non-combat . | . . . . Combat . | . . . . Robot Hacks Applied . | . . . . Relay Couplers Released . | . . . . Fabnet Peak Effective % . | . . . . Robots Rewired . | . . . . Allies Hacked . | . . . . Hacks Repelled . | . . . . Allies | -11 -10 -10 -10 -------- Run | Yrd Mat Min Sub Total Allies 1 | . . 1 . Largest Group 1 | . . 1 . Highest-Rated Group 31 | . . 31 . Highest-Rated Ally 31 | . . 31 . Total Orders . | . . . . Ally Attacks 6 | . . 6 . Total Damage 103 | . . 103 . Kills 1 | . . 1 . Allies Corrupted . | . . . . Allies Melted . | . . . . Intel | -11 -10 -10 -10 ------- Run | Yrd Mat Min Sub Robot Analysis Total . | . . . . Derelict Logs Recovered 3 | . . 2 1 Drone Launches . | . . . . Drone Recoveries . | . . . . Exploration | -11 -10 -10 -10 ------------- Run | Yrd Mat Min Sub Turns Passed 3520 | 5 948 2329 238 Spaces Moved 1185 | 5 325 761 94 Core . | . . . . Treads 579 | . 316 263 . Legs 14 | 5 9 . . Wheels 592 | . . 498 94 Hover . | . . . . Flight . | . . . . Fastest Speed 120 | 120 120 200 200 Average Speed 257 | 120 225 279 200 Slowest Speed 480 | 120 320 480 200 Overloaded Moves . | . . . . Propulsion Burnouts . | . . . . Robots Hopped . | . . . . Cave-ins Triggered . | . . . . Exploration Rate (%) 40 | 2 51 99 8 Regions Visited 3 Branch Regions 2 Pre-discovered Areas 2 | . . 1 1 Known Exits Taken 1 | . 1 . . Unknown Exits Taken 2 | 1 . 1 . Scrap Searched 1 | . . 1 . Spaces Dug . | . . . . Terrain Destroyed 11 | . 6 4 1 Melee . | . . . . Projectile 5 | . . 4 1 AOE 6 | . 6 . . Terrain Rammed . | . . . . Walls Destroyed . | . . . . Machines Disabled . | . . . . Actions | -11 -10 -10 -10 --------- Run | Yrd Mat Min Sub Total 1399 | 4 413 861 121 Wait 36 | . . 28 8 Move 1182 | 4 324 760 94 Hop . | . . . . Pick Up 15 | . 8 6 1 Fast Attach 7 | . 5 2 . Attach 12 | . 4 4 4 Detach 2 | . 1 1 . Swap 8 | . 2 4 2 Drop 5 | . 4 1 . Fire 132 | . 65 55 12 Melee . | . . . . Ram . | . . . . Kick . | . . . . Crush . | . . . . Escape Stasis . | . . . . Rewire . | . . . . Trap . | . . . . Miscellaneous . | . . . . Route ------- -11/Scrapyard -10/Materials (discovered 4 exits: [*Mat x2] / *Min x2) -10/Mines (discovered 4 exits: [*Mat x2] / [*Exi] / [*Sub]) -10/Subcaves (discovered 1 exit: [*Mat]) History --------- Turn | Location | Event 1 | -11/Scrapyard | Discovered new exit (range 2) 6 | -11/Scrapyard | Entered Materials 29 | -10/Materials | Identified exit to Mines 162 | -10/Materials | Discovered new exit (range 12) 317 | -10/Materials | Build established: Mutant 533 | -10/Materials | Discovered new exit (range 8) 843 | -10/Materials | Lost 4 parts (1p1n2w) 954 | -10/Materials | Entered Mines 955 | -10/Mines | Learned location of Storage (-8) 1073 | -10/Mines | Met a Derelict bent on vengeance 1182 | -10/Mines | A weapon hastily lodged in a ceiling crevice suddenly fell to the ground 1335 | -10/Mines | Discovered new exit (range 13) 1353 | -10/Mines | Excavation squad dispatched 1353 | -10/Mines | A large section of the Mines collapsed 1435 | -10/Mines | Core integrity fell below 50% 1637 | -10/Mines | Escorted by a lone wolf Derelict 1827 | -10/Mines | Learned Materials garrison access intel 1873 | -10/Mines | Discovered new exit (range 16) 2254 | -10/Mines | Learned 2 Materials zone layouts 2321 | -10/Mines | Deemed a non-threat by the Exiles lab entrance 2323 | -10/Mines | Discovered new exit (range 5) 2977 | -10/Mines | Lost 3 parts (1n2w) 3201 | -10/Mines | Discovered new exit (range 15) 3283 | -10/Mines | Entered Subcaves 3284 | -10/Subcaves | Shifting Twisted Machinery released Battle Cannon 3298 | -10/Subcaves | Shifting Twisted Machinery released Sub. Laser 3330 | -10/Subcaves | Shifting Twisted Machinery released Sub. Optics 3385 | -10/Subcaves | Learned location of Zion (-7) 3392 | -10/Subcaves | Core integrity fell below 20% 3451 | -10/Subcaves | Lost 3 parts (2n1w) 3481 | -10/Subcaves | Discovered new exit (range 5) 3521 | -10/Subcaves | Destroyed by TZ-N2U(R) with Subdweller Beam Cannon Last Messages --------------- Sub. Laser falls loose from the Twisted Machinery. 03299_ Acquired Battle Cannon. Sub. Optics falls loose from the Twisted Machinery. 03385_ Acquired derelict log, extracted data. World map updated: -7/Zion. 03405_ S-10 Pest knocked back. 03408_ Assault Rifle destroyed. 03408_ S-10 Pest knocked back. 03411_ Lgt. Treads destroyed. 03416_ S-10 Pest destroyed. 03420_ Wheel destroyed. 03427_ Corrupted Flight Unit fries itself beyond repair. 03428_ S-10 Pest destroyed. 03431_ Acquired 8 matter. 03433_ Acquired 2 matter. 03435_ Acquired 19 matter. 03481_ EXIT=FOUND 03516_ Imp. Terrain Scanner destroyed. 03518_ EM Pulse Gun destroyed. 03519_ RX-C56(R) knocked back. Map ----- +----------------------------------------------------+ | ?????????????????????????????????????????????????? | | ?????????????????????????????????????????????????? | | ?????????????????????????????????????????????????? | | ?????????????????????????????????????????????????? | | ?????????????????????????????????????????????????? | | ?????????????????????????????????????????????????? | | ?????????????????????????????????????????????????? | | ?????????????????????????????????????????????????? | | ?????????????????????????????????????????????????? | | ?????????????????????????????????????????????????? | | ?????????????????????????????????????????????????? | | ?????????????????????????????????????????????????? | | ?????????????????????????????????????????????????? | | ??????????????????????#????????#?????????????????? | | ??????????????????????????????? "???????????????? | | ??????????????????????????????# ????????????????? | | #???????#???????????????????## ????????????????? | | ???##?????#?????????????????? #????????????????? | | ??# #???????????????????????# ?????????????????? | | ## #???????????????? ?????? ?????????????????? | | #??????????????????????# #?"???????????????? | | #####?????????????????? #?????????????????? | | ?? ???? ??????????? #?????????????????? | | ?? ????????????????? ??????????????????? | | #????? ??????????#### ##??????????????????? | | ###?#??#?????????#@ R #??????????????????? | | #???????#?#?????## R ##??????????????????? | | ??#??#?????#????# #%##???????????????????? | | ?????##???#???#???## ##????????????#???????? | | % ###????#?????#??????# ##???????#????????????? | | #????##?#???#?#??### ###??????????????????? | | ## "#???#???????????## #?????#?????????????? | | ?# ####????????????# < #???????????????????? | | ## ###??????#???# ##???????????????????? | | ?# ###????#????## ##????????????????????? | | ?# ## ###???????????## ##?#??????????????????? | | ?###### ################ #????????????????????? | | ?????## ## ## ## ## #????????????????????? | | ? ???# [" #????????????????????? | | ????#######" ## #### # #?#??????????????????? | | ????#?## # ## # ###### #????????????????????? | | ?#?#### ## #????????????????????? | | ??## "" "" " ### #????????????????????? | | ?## ## # ## # #?# #????#???????????????? | | ## # ### ####### ????????????????????? | | #### #???? # ##??????????????????? | | ##??# ##???????????????????? | | ##???# # # #????????????????????? | | ####???### ##?### #### #????????????????????? | | ??????#??######????#####???##????????????????????? | +----------------------------------------------------+ Best States ------------- Heat Dissipation 25 Energy Generation 14 Energy Capacity 250 Matter Stores 300 Matter Capacity 300 Sight Range 16 Terrain Scan Range 16 Terrain Scan Density 10 Evasion (%) 50 Recoil Reduction 2 Item Schematics ----------------- None Robot Schematics ------------------ None Fabricated ------------ Nothing Alien Tech Used ----------------- None Achievements -------------- None Challenges ------------ None Game ------ Seed StorageFieldReplica Manual? 0 Play Time 00:13:03 Cumulative 137.6 hours Start 2024.11.25 @ 06:57:29 End 2024.11.25 @ 07:09:55 Sessions 1 Manual Loads 0 Difficulty Rogue Special Mode None Game No. 267 Rogue 267 Adventurer 0 Explorer 0 Win Type - Total 0 Types 0/0/0/0/0/0/0/0/0 Lore% 43 Gallery% 41 Achievement% 36 Wizard Run 0 Options --------- Layout 0 ASCII 0 Keyboard 0 Movement Mouse Keybinds 0 Fullscreen 1 Font 24/Smallcaps Map View 91x25 Zoom Use 90% Tactical HUD 1 Map Filters NONE Filters NONE Steam 1 RUN: e2921366-b65f-42c3-bc55-55ff83f2293e